fUSD/lending_fUSD_20251030
["ID","MTS","AMOUNT","RATE_DAILY","PERIOD"]
[392696692,1761833432471,-689.66,0.00014991,2]
[392696694,1761833432480,-275.74,0.00014994,2]
[392696696,1761833432490,-500.0,0.00014999,2]
[392696698,1761833432500,-500.0,0.00014999,2]
[392696700,1761833432510,-620.4,0.00014999,2]
[392696701,1761833432519,-500.0,0.00014999,2]
[392696703,1761833432528,-500.0,0.00014999,2]
[392696705,1761833432538,-372.89935496,0.00014999,2]
[392696707,1761833432548,-500.0,0.00014999,2]
[392696709,1761833432557,-500.0,0.00014999,2]
[392696711,1761833432567,-500.0,0.00014999,2]
[392696713,1761833432576,-500.0,0.00014999,2]
[392696714,1761833432585,-205.89,0.00014999,2]
[392696716,1761833432596,-523.47855214,0.00014999,2]
[392696718,1761833432607,-500.0,0.00014999,2]
[392696720,1761833432617,-500.0,0.00014999,2]
[392696722,1761833432626,-500.0,0.00014999,2]
[392696723,1761833432635,-150.79851215,0.00014999,2]
[392696725,1761833432645,-150.0,0.00014999,2]
[392696727,1761833432654,-500.0,0.00014999,2]
[392696729,1761833432663,-500.0,0.00014999,2]
[392696731,1761833432672,-500.0,0.00014999,2]
[392696733,1761833432682,-150.0,0.00014999,2]
[392696735,1761833432692,-150.0,0.00014999,2]
[392696736,1761833432701,-150.0,0.00014999,2]
[392696739,1761833432720,-500.0,0.00014999,2]
[392696741,1761833432732,-500.0,0.00014999,2]
[392696743,1761833432743,-300.0,0.00014999,2]
[392696745,1761833432757,-666.0,0.00014999,2]
[392696747,1761833432767,-3808.0,0.00015,2]
[392696749,1761833432776,-2633.54659833,0.00015,2]
[392696751,1761833432790,-53224.79543555,0.00015,2]
[392696766,1761833432939,-1254.41808677,0.00015,2]
[392697225,1761833437669,-500.0,0.00014973,2]
[392697227,1761833437691,-2224.7365,0.00015,2]
[392697229,1761833437704,-1122.70891671,0.00015,2]
[392697231,1761833437717,-504.54987235,0.00015,2]
[392697254,1761833437930,-1814.66994,0.00015,2]
[392697256,1761833437942,-3783.5,0.00015,2]
[392697449,1761833439830,-1515.534,0.00015,2]
[392697463,1761833439957,-9042.1520377,0.00015,2]
[392697466,1761833439969,-280.74157844,0.00015,2]
[392697468,1761833439980,-578.3198693,0.00015,2]
[392697470,1761833439992,-70209.22121103,0.00015,2]
[392697472,1761833440005,-1507445.36765564,0.00015,2]
[392697491,1761833440182,-749.49227956,0.00015,2]
[392697956,1761833444672,-204640.01680757,0.00015,2]
[392697958,1761833444682,-83306.55620638,0.00015,2]
[392697963,1761833444721,-2160.8,0.00015,2]
[392697974,1761833444814,-270048.74265099,0.00015,2]
[392698069,1761833445653,-1198.22621841,0.00015,2]
[392698071,1761833445664,-461.58236576,0.00015,2]
[392698073,1761833445675,-108370.0,0.00015,2]
[392698084,1761833445772,-540.3,0.00015,2]
[392698107,1761833445980,-16810.0489186,0.00015,2]
[392698108,1761833445991,-1188.88,0.00015,2]
[392698312,1761833454585,2500.0,0.00014082,2]
[392698313,1761833464722,176.19,0.00013982,2]
[392698315,1761833581264,200.0,0.00014104,2]
[392698316,1761833622260,315.5,0.000315,120]
[392698317,1761833631473,2300.0,0.00014082,2]
[392698318,1761833748289,200.0,0.00013982,2]
[392698319,1761833807116,1000.0,0.00013808,2]
[392698320,1761833809370,2200.0,0.00014082,2]
[392698321,1761833929972,563.8,0.00031507,120]
[392698322,1761833952675,-150.0,0.0002653,30]
[392698323,1761833952719,-244.31755964,0.0002653,30]
[392698324,1761833952758,-150.0,0.0002653,30]
[392698325,1761833952797,-1144.111055,0.0002653,30]
[392698326,1761833952833,-150.0,0.0002653,30]
[392698327,1761833952871,-475.79137583,0.0002653,30]
[392698328,1761833952918,-476.34,0.00027671,30]
[392698329,1761833952959,-151.0,0.00028,31]
[392698330,1761833952997,-151.0,0.00028,31]
[392698331,1761833953036,-151.0,0.00028,31]
[392698332,1761833953074,-152.50751288,0.00028,31]
[392698333,1761833953112,-287.450431,0.00028,31]
[392698334,1761833953150,-287.450431,0.00028,31]
[392698335,1761833953189,-287.450431,0.00028,31]
[392698336,1761833953232,-287.450435,0.00028,31]
[392698337,1761833953271,-190.553662,0.00028,31]
[392698338,1761833953309,-190.553662,0.00028,31]
[392698339,1761833953347,-151.0,0.00028,31]
[392698340,1761833953384,-190.553662,0.00028,31]
[392698341,1761833953422,-151.0,0.00028,31]
[392698342,1761833953461,-190.553665,0.00028,31]
[392698343,1761833953498,-151.0,0.00028,31]
[392698344,1761833953539,-172.947013,0.00028,31]
[392698345,1761833953580,-151.0,0.00028,31]
[392698346,1761833953621,-202.997679,0.00028,31]
[392698347,1761833953661,-202.997679,0.00028,31]
[392698348,1761833953701,-202.997679,0.00028,31]
[392698349,1761833953740,-202.997672,0.00028,31]
[392698350,1761833953779,-162.173672,0.00028,31]
[392698351,1761833953820,-151.0,0.00028,31]
[392698352,1761833953862,-151.0,0.00028,31]
[392698353,1761833953909,-173.228622,0.00028,31]
[392698354,1761833953955,-173.228622,0.00028,31]
[392698355,1761833953997,-173.228622,0.00028,31]
[392698356,1761833954037,-173.228614,0.00028,31]
[392698357,1761833954077,-158.108511,0.00028,31]
[392698358,1761833954118,-158.108511,0.00028,31]
[392698359,1761833954158,-158.108511,0.00028,31]
[392698360,1761833954197,-158.108509,0.00028,31]
[392698361,1761833954242,-151.0,0.00028,30]
[392698362,1761833954283,-151.0,0.00028,31]
[392698363,1761833954323,-151.0,0.00028,30]
[392698364,1761833954368,-151.0,0.00028,31]
[392698365,1761833954408,-151.0,0.00028,30]
[392698366,1761833954447,-151.0,0.00028,31]
[392698367,1761833954492,-244.26,0.00029551,30]
[392698368,1761833954532,-151.0,0.00029899,31]
[392698369,1761833954572,-237.265146,0.00029899,31]
[392698370,1761833954610,-151.0,0.00029899,31]
[392698371,1761833954648,-151.0,0.00029899,31]
[392698372,1761833954688,-2503.89638816,0.0003,30]
[392698373,1761833954726,-153.008316,0.0003,31]
[392698374,1761833954764,-151.0,0.0003,31]
[392698375,1761833954803,-151.0,0.0003,31]
[392698376,1761833954853,-2026.46390757,0.00031,45]
[392698377,1761833954905,-2984487.56244392,0.00031507,60]
[392698378,1761833960624,-3000000.0,0.00037102,30]
[392698379,1761833968241,-3000000.0,0.00037093,30]
[392698380,1761833971295,-3000000.0,0.00037093,30]
[392698381,1761833990831,-4202227.60863959,0.00037093,30]
[392698382,1761833990874,-200.0,0.00037093,30]
[392698383,1761833990915,-300.0,0.00037093,30]
[392698384,1761833990959,-210.95845348,0.00037093,30]
[392698385,1761833991000,-1167.26314992,0.00037093,30]
[392698386,1761833991035,-168.8364151,0.00037093,30]
[392698387,1761833991069,-662.91443575,0.00037093,30]
[392698388,1761833991104,-6675.19214741,0.00037093,30]
[392698389,1761833991138,-208.15636882,0.00037093,30]
[392698390,1761833991173,-200.0,0.00037093,30]
[392698391,1761833991208,-7631.24535114,0.00037093,30]
[392698392,1761833991242,-19445.7223421,0.00037093,35]
[392698393,1761833991282,-5050.0,0.00037093,36]
[392698394,1761833991317,-687.34,0.00037093,31]
[392698395,1761833991357,-215.2,0.00037093,30]
[392698396,1761833991393,-151.0,0.00037093,30]
[392698397,1761833991429,-215.2,0.00037093,30]
[392698398,1761833991465,-168.85283164,0.00037093,30]
[392698399,1761833991501,-1630.95151169,0.00037093,30]
[392698400,1761833991537,-20119.07,0.00037093,30]
[392698401,1761833991576,-155.3718643,0.00037093,30]
[392698402,1761833991612,-100475.0,0.00037093,46]
[392698403,1761833991648,-5050.0,0.00037093,35]
[392698404,1761833991684,-994305.80619303,0.00037093,30]
[392698405,1761833991718,-4000.0,0.00037093,31]
[392698406,1761833991753,-500.0,0.00037093,30]
[392698407,1761833991790,-500.0,0.00037093,30]
[392698408,1761833991826,-500.0,0.00037093,30]
[392698409,1761833991862,-500.0,0.00037093,30]
[392698410,1761833992171,-500.0,0.00037093,30]
[392698411,1761833992207,-500.0,0.00037093,30]
[392698412,1761833992241,-500.0,0.00037093,30]
[392698413,1761833992276,-500.0,0.00037093,30]
[392698414,1761833992310,-500.0,0.00037093,30]
[392698415,1761833992343,-500.0,0.00037093,30]
[392698416,1761833992382,-500.0,0.00037093,30]
[392698417,1761833992417,-500.0,0.00037093,30]
[392698418,1761833992451,-500.0,0.00037093,30]
[392698419,1761833992487,-500.0,0.00037093,30]
[392698420,1761833992521,-500.0,0.00037093,30]
[392698421,1761833992556,-500.0,0.00037093,30]
[392698422,1761833992590,-500.0,0.00037093,30]
[392698423,1761833992626,-589.86,0.00037093,30]
[392698424,1761833992662,-589.86,0.00037093,30]
[392698425,1761833992699,-589.86,0.00037093,30]
[392698426,1761833992736,-589.86,0.00037093,30]
[392698427,1761833992770,-589.86,0.00037093,30]
[392698428,1761833992810,-589.86,0.00037093,30]
[392698429,1761833992846,-589.86,0.00037093,30]
[392698430,1761833992882,-589.86,0.00037093,30]
[392698431,1761833992920,-589.86,0.00037093,30]
[392698432,1761833992955,-589.86,0.00037093,30]
[392698433,1761833992992,-589.86,0.00037093,30]
[392698434,1761833993028,-589.86,0.00037093,30]
[392698435,1761833993063,-589.86,0.00037093,30]
[392698436,1761833993099,-589.86,0.00037093,30]
[392698437,1761833993135,-589.86,0.00037093,30]
[392698438,1761833993172,-589.86,0.00037093,30]
[392698439,1761833993211,-589.86,0.00037093,30]
[392698440,1761833993248,-589.86,0.00037093,30]
[392698441,1761833993288,-589.86,0.00037093,30]
[392698442,1761833993325,-589.86,0.00037093,30]
[392698443,1761833993367,-589.86,0.00037093,30]
[392698444,1761833993404,-589.86,0.00037093,30]
[392698445,1761833993443,-589.86,0.00037093,30]
[392698446,1761833993481,-590.02532697,0.00037093,30]
[392698447,1761833993520,-500.0,0.00037093,30]
[392698448,1761833993556,-500.0,0.00037093,30]
[392698449,1761833993592,-500.0,0.00037093,30]
[392698450,1761833993627,-500.0,0.00037093,30]
[392698451,1761833993662,-500.0,0.00037093,30]
[392698452,1761833993697,-500.0,0.00037093,30]
[392698453,1761833993736,-500.0,0.00037093,30]
[392698454,1761833993774,-500.0,0.00037093,30]
[392698455,1761833993810,-500.0,0.00037093,30]
[392698456,1761833993846,-500.0,0.00037093,30]
[392698457,1761833993883,-500.0,0.00037093,30]
[392698458,1761833993919,-500.0,0.00037093,30]
[392698459,1761833993957,-500.0,0.00037093,30]
[392698460,1761833993995,-500.0,0.00037093,30]
[392698461,1761833994032,-500.0,0.00037093,30]
[392698462,1761833994071,-500.0,0.00037093,30]
[392698463,1761833994109,-500.0,0.00037093,30]
[392698464,1761833994147,-154.64497399,0.00037093,30]
[392698465,1761833994186,-437.77136759,0.00037093,120]
[392698466,1761833994223,-500.0,0.00037093,120]
[392698467,1761833994261,-501.93,0.00037093,120]
[392698468,1761833994296,-500.0,0.00037093,120]
[392698469,1761833994333,-816.44,0.00037093,120]
[392698470,1761833994368,-959.77,0.00037093,120]
[392698471,1761833994404,-500.0,0.00037093,120]
[392698472,1761833994439,-500.0,0.00037093,120]
[392698473,1761833994475,-501.93,0.00037093,120]
[392698474,1761833994510,-500.0,0.00037093,120]
[392698475,1761833994547,-816.44,0.00037093,120]
[392698476,1761833994584,-959.77,0.00037093,120]
[392698477,1761833994620,-500.0,0.00037093,120]
[392698478,1761833994656,-500.0,0.00037093,120]
[392698479,1761833994698,-500.0,0.00037093,120]
[392698480,1761833994738,-500.0,0.00037093,120]
[392698481,1761833994778,-816.44,0.00037093,120]
[392698482,1761833994823,-959.77,0.00037093,120]
[392698483,1761833994869,-500.0,0.00037093,120]
[392698484,1761833994908,-395.42821893,0.00037093,120]
[392698485,1761833994946,-500.0,0.00037093,120]
[392698486,1761833994987,-500.0,0.00037093,120]
[392698487,1761833995026,-500.0,0.00037093,120]
[392698488,1761833995065,-816.5,0.00037093,120]
[392698489,1761833995104,-959.77,0.00037093,120]
[392698490,1761833995150,-501.93,0.00037093,120]
[392698491,1761833995202,-500.0,0.00037093,120]
[392698492,1761833995243,-500.0,0.00037093,120]
[392698493,1761833995280,-500.0,0.00037093,120]
[392698494,1761833995318,-156.85820902,0.00037093,120]
[392698495,1761833995361,-601.76965701,0.00037093,120]
[392698496,1761833995399,-959.77,0.00037093,120]
[392698497,1761833995437,-500.0,0.00037093,120]
[392698498,1761833995477,-501.93,0.00037093,120]
[392698499,1761833995514,-500.0,0.00037093,120]
[392698500,1761833995552,-500.0,0.00037093,120]
[392698501,1761833995591,-500.0,0.00037093,120]
[392698502,1761833995629,-500.0,0.00037093,120]
[392698503,1761833995667,-500.0,0.00037093,120]
[392698504,1761833995706,-382.68016603,0.00037093,120]
[392698505,1761833995747,-959.77,0.00037093,120]
[392698506,1761833995785,-500.0,0.00037093,120]
[392698507,1761833995824,-500.0,0.00037093,120]
[392698508,1761833995861,-500.0,0.00037093,120]
[392698509,1761833995899,-500.0,0.00037093,120]
[392698510,1761833995936,-501.93,0.00037093,120]
[392698511,1761833995974,-201.40592314,0.00037093,120]
[392698512,1761833996012,-959.77,0.00037093,120]
[392698513,1761833996270,-500.0,0.00037093,120]
[392698514,1761833996306,-500.0,0.00037093,120]
[392698515,1761833996340,-500.0,0.00037093,120]
[392698516,1761833996379,-501.93,0.00037093,120]
[392698517,1761833996414,-500.0,0.00037093,120]
[392698518,1761833996448,-959.77,0.00037093,120]
[392698519,1761833996484,-500.0,0.00037093,120]
[392698520,1761833996520,-500.0,0.00037093,120]
[392698521,1761833996556,-500.0,0.00037093,120]
[392698522,1761833996597,-501.99688371,0.00037093,120]
[392698523,1761833996632,-500.0,0.00037093,120]
[392698524,1761833996669,-959.77,0.00037093,120]
[392698525,1761833996708,-519.48385329,0.00037093,120]
[392698526,1761833996745,-500.0,0.00037093,120]
[392698527,1761833996782,-500.0,0.00037093,120]
[392698528,1761833996817,-500.0,0.00037093,120]
[392698529,1761833996853,-959.83239518,0.00037093,120]
[392698530,1761833996889,-500.0,0.00037093,120]
[392698531,1761833996926,-500.0,0.00037093,120]
[392698532,1761833996981,-577.97964563,0.00037093,120]
[392698533,1761833997019,-500.0,0.00037093,120]
[392698534,1761833997055,-500.0,0.00037093,120]
[392698535,1761833997089,-500.0,0.00037093,120]
[392698536,1761833997126,-500.0,0.00037093,120]
[392698537,1761833997162,-500.0,0.00037093,120]
[392698538,1761833997199,-500.0,0.00037093,120]
[392698539,1761833997232,-500.0,0.00037093,120]
[392698540,1761833997267,-535.09401592,0.00037093,120]
[392698541,1761833997302,-500.0,0.00037093,120]
[392698542,1761833997336,-500.0,0.00037093,120]
[392698543,1761833997370,-157.77976259,0.00037093,120]
[392698544,1761833997404,-500.0,0.00037093,120]
[392698545,1761833997438,-500.0,0.00037093,120]
[392698546,1761833997473,-506.78372228,0.00037093,120]
[392698547,1761833997506,-500.0,0.00037093,120]
[392698548,1761833997541,-506.32164736,0.00037093,120]
[392698549,1761833997577,-500.0,0.00037093,120]
[392698550,1761833997623,-500.0,0.00037093,120]
[392698551,1761833997662,-500.0,0.00037093,120]
[392698552,1761833997699,-500.0,0.00037093,120]
[392698553,1761833997738,-530.77913972,0.00037093,120]
[392698554,1761833997776,-500.0,0.00037093,120]
[392698555,1761833997813,-500.0,0.00037093,120]
[392698556,1761833997849,-500.0,0.00037093,120]
[392698557,1761833997885,-346.14666462,0.00037093,120]
[392698558,1761833997921,-500.0,0.00037093,120]
[392698559,1761833997956,-500.0,0.00037093,120]
[392698560,1761833997994,-170.4156116,0.00037093,120]
[392698561,1761833998030,-500.0,0.00037093,120]
[392698562,1761833998068,-500.0,0.00037093,120]
[392698563,1761833998105,-500.0,0.00037093,120]
[392698564,1761833998145,-500.0,0.00037093,120]
[392698565,1761833998182,-500.0,0.00037093,120]
[392698566,1761833998226,-500.0,0.00037093,120]
[392698567,1761833998266,-500.0,0.00037093,120]
[392698568,1761833998301,-500.0,0.00037093,120]
[392698569,1761833998336,-639.59701227,0.00037093,120]
[392698570,1761833998373,-500.0,0.00037093,120]
[392698571,1761833998409,-501.35794119,0.00037093,120]
[392698572,1761833998444,-500.0,0.00037093,120]
[392698573,1761833998482,-500.0,0.00037093,120]
[392698574,1761833998517,-585.30380175,0.00037093,120]
[392698575,1761833998554,-273.4088391,0.00037093,120]
[392698576,1761833998594,-500.0,0.00037093,120]
[392698577,1761833998631,-358.85562885,0.00037093,120]
[392698578,1761833998669,-631.70567126,0.00037093,120]
[392698579,1761833998707,-500.0,0.00037093,120]
[392698580,1761833998744,-500.0,0.00037093,120]
[392698581,1761833998779,-500.0,0.00037093,120]
[392698582,1761833998822,-500.0,0.00037093,120]
[392698583,1761833998858,-500.0,0.00037093,120]
[392698584,1761833998896,-500.0,0.00037093,120]
[392698585,1761833998932,-500.0,0.00037093,120]
[392698586,1761833998970,-500.0,0.00037093,120]
[392698587,1761833999008,-500.0,0.00037093,120]
[392698588,1761833999049,-500.0,0.00037093,120]
[392698589,1761833999088,-500.0,0.00037093,120]
[392698590,1761833999127,-522.58394794,0.00037093,120]
[392698591,1761833999169,-500.0,0.00037093,120]
[392698592,1761833999214,-2871.8,0.00037093,120]
[392698593,1761833999251,-500.0,0.00037093,120]
[392698594,1761833999289,-500.0,0.00037093,120]
[392698595,1761833999325,-500.0,0.00037093,120]
[392698596,1761833999369,-2871.8,0.00037093,120]
[392698597,1761833999414,-500.0,0.00037093,120]
[392698598,1761833999462,-500.0,0.00037093,120]
[392698599,1761833999504,-500.0,0.00037093,120]
[392698600,1761833999543,-500.0,0.00037093,120]
[392698601,1761833999585,-2871.8,0.00037093,120]
[392698602,1761833999622,-500.0,0.00037093,120]
[392698603,1761833999659,-500.0,0.00037093,120]
[392698604,1761833999697,-529.61717128,0.00037093,120]
[392698605,1761833999735,-500.0,0.00037093,120]
[392698606,1761833999773,-2871.8,0.00037093,120]
[392698607,1761833999813,-500.0,0.00037093,120]
[392698608,1761833999850,-500.0,0.00037093,120]
[392698609,1761833999887,-500.0,0.00037093,120]
[392698610,1761833999924,-500.0,0.00037093,120]
[392698611,1761833999964,-500.0,0.00037093,120]
[392698612,1761834000005,-2871.8,0.00037093,120]
[392698613,1761834000047,-506.83447381,0.00037093,120]
[392698614,1761834000087,-601.95444035,0.00037093,120]
[392698615,1761834000127,-500.0,0.00037093,120]
[392698616,1761834000450,-2871.8,0.00037093,120]
[392698617,1761834000500,-2871.8,0.00037093,120]
[392698618,1761834000548,-2871.8,0.00037093,120]
[392698619,1761834000601,-2871.8,0.00037093,120]
[392698620,1761834000641,-2871.8,0.00037093,120]
[392698621,1761834000680,-500.0,0.00037093,120]
[392698622,1761834000723,-508.67762242,0.00037093,120]
[392698623,1761834000762,-2871.8,0.00037093,120]
[392698624,1761834000798,-500.0,0.00037093,120]
[392698625,1761834000836,-500.0,0.00037093,120]
[392698626,1761834000876,-2871.8,0.00037093,120]
[392698627,1761834000912,-500.0,0.00037093,120]
[392698628,1761834000948,-500.0,0.00037093,120]
[392698629,1761834000990,-2871.8,0.00037093,120]
[392698630,1761834001028,-500.0,0.00037093,120]
[392698631,1761834001064,-593.60693437,0.00037093,120]
[392698632,1761834001100,-500.0,0.00037093,120]
[392698633,1761834001136,-500.0,0.00037093,120]
[392698634,1761834001173,-500.0,0.00037093,120]
[392698635,1761834001210,-500.0,0.00037093,120]
[392698636,1761834001249,-2871.8,0.00037093,120]
[392698637,1761834001285,-500.0,0.00037093,120]
[392698638,1761834001321,-516.86427624,0.00037093,120]
[392698639,1761834001363,-500.0,0.00037093,120]
[392698640,1761834001399,-500.0,0.00037093,120]
[392698641,1761834001439,-500.0,0.00037093,120]
[392698642,1761834001478,-2871.8,0.00037093,120]
[392698643,1761834001518,-500.0,0.00037093,120]
[392698644,1761834001559,-500.0,0.00037093,120]
[392698645,1761834001598,-500.0,0.00037093,120]
[392698646,1761834001636,-500.0,0.00037093,120]
[392698647,1761834001675,-500.0,0.00037093,120]
[392698648,1761834001719,-2871.8,0.00037093,120]
[392698649,1761834001756,-204.8949067,0.00037093,120]
[392698650,1761834001792,-466.31629798,0.00037093,120]
[392698651,1761834001828,-500.0,0.00037093,120]
[392698652,1761834001864,-500.0,0.00037093,120]
[392698653,1761834001900,-2871.8,0.00037093,120]
[392698654,1761834001937,-500.0,0.00037093,120]
[392698655,1761834001973,-500.0,0.00037093,120]
[392698656,1761834002009,-2871.8,0.00037093,120]
[392698657,1761834002045,-500.0,0.00037093,120]
[392698658,1761834002082,-500.0,0.00037093,120]
[392698659,1761834002123,-500.0,0.00037093,120]
[392698660,1761834002162,-517.15410086,0.00037093,120]
[392698661,1761834002206,-2871.8,0.00037093,120]
[392698662,1761834002246,-500.0,0.00037093,120]
[392698663,1761834002283,-500.0,0.00037093,120]
[392698664,1761834002320,-2871.8,0.00037093,120]
[392698665,1761834002358,-500.0,0.00037093,120]
[392698666,1761834002400,-500.0,0.00037093,120]
[392698667,1761834002444,-2871.8,0.00037093,120]
[392698668,1761834002487,-500.0,0.00037093,120]
[392698669,1761834002540,-500.0,0.00037093,120]
[392698670,1761834002582,-500.0,0.00037093,120]
[392698671,1761834002624,-2871.8,0.00037093,120]
[392698672,1761834002666,-500.0,0.00037093,120]
[392698673,1761834002723,-500.0,0.00037093,120]
[392698674,1761834002764,-2871.8,0.00037093,120]
[392698675,1761834002802,-500.0,0.00037093,120]
[392698676,1761834002840,-500.0,0.00037093,120]
[392698677,1761834002877,-710.06,0.00037093,120]
[392698678,1761834002916,-500.0,0.00037093,120]
[392698679,1761834002956,-305.77614138,0.00037093,120]
[392698680,1761834002998,-2872.00220453,0.00037093,120]
[392698681,1761834003041,-408.63254075,0.00037093,120]
[392698682,1761834003090,-710.06,0.00037093,120]
[392698683,1761834003142,-500.0,0.00037093,120]
[392698684,1761834003193,-500.0,0.00037093,120]
[392698685,1761834003248,-500.0,0.00037093,120]
[392698686,1761834003290,-500.0,0.00037093,120]
[392698687,1761834003335,-710.06,0.00037093,120]
[392698688,1761834003377,-500.0,0.00037093,120]
[392698689,1761834003418,-500.0,0.00037093,120]
[392698690,1761834003459,-500.0,0.00037093,120]
[392698691,1761834003504,-500.0,0.00037093,120]
[392698692,1761834003547,-500.0,0.00037093,120]
[392698693,1761834003590,-500.0,0.00037093,120]
[392698694,1761834003632,-710.06,0.00037093,120]
[392698695,1761834003673,-500.0,0.00037093,120]
[392698696,1761834003717,-500.0,0.00037093,120]
[392698697,1761834003763,-500.0,0.00037093,120]
[392698698,1761834003808,-500.0,0.00037093,120]
[392698699,1761834003850,-500.0,0.00037093,120]
[392698700,1761834003893,-500.0,0.00037093,120]
[392698701,1761834003935,-500.0,0.00037093,120]
[392698702,1761834003979,-710.06,0.00037093,120]
[392698703,1761834004032,-500.0,0.00037093,120]
[392698704,1761834004078,-510.80954358,0.00037093,120]
[392698705,1761834004123,-500.0,0.00037093,120]
[392698706,1761834004167,-500.0,0.00037093,120]
[392698707,1761834004215,-710.06,0.00037093,120]
[392698708,1761834004260,-500.0,0.00037093,120]
[392698709,1761834004308,-500.0,0.00037093,120]
[392698710,1761834004354,-500.0,0.00037093,120]
[392698711,1761834004405,-710.06,0.00037093,120]
[392698712,1761834004450,-500.0,0.00037093,120]
[392698713,1761834004495,-710.06,0.00037093,120]
[392698714,1761834004538,-500.0,0.00037093,120]
[392698715,1761834004579,-500.0,0.00037093,120]
[392698716,1761834004623,-500.0,0.00037093,120]
[392698717,1761834004663,-710.06,0.00037093,120]
[392698718,1761834004708,-500.0,0.00037093,120]
[392698719,1761834005044,-500.0,0.00037093,120]
[392698720,1761834005089,-500.0,0.00037093,120]
[392698721,1761834005132,-500.0,0.00037093,120]
[392698722,1761834005175,-710.06,0.00037093,120]
[392698723,1761834005219,-500.0,0.00037093,120]
[392698724,1761834005261,-500.0,0.00037093,120]
[392698725,1761834005304,-500.0,0.00037093,120]
[392698726,1761834005343,-500.0,0.00037093,120]
[392698727,1761834005386,-710.06,0.00037093,120]
[392698728,1761834005428,-500.0,0.00037093,120]
[392698729,1761834005472,-500.0,0.00037093,120]
[392698730,1761834005513,-500.0,0.00037093,120]
[392698731,1761834005554,-500.0,0.00037093,120]
[392698732,1761834005592,-710.06,0.00037093,120]
[392698733,1761834005632,-500.0,0.00037093,120]
[392698734,1761834005670,-500.0,0.00037093,120]
[392698735,1761834005710,-500.0,0.00037093,120]
[392698736,1761834005755,-500.0,0.00037093,120]
[392698737,1761834005795,-710.06,0.00037093,120]
[392698738,1761834005834,-500.0,0.00037093,120]
[392698739,1761834005880,-500.0,0.00037093,120]
[392698740,1761834005932,-648.18015184,0.00037093,120]
[392698741,1761834005980,-154.16925518,0.00037093,120]
[392698742,1761834006029,-469.74213913,0.00037093,120]
[392698743,1761834006069,-710.06,0.00037093,120]
[392698744,1761834006111,-529.17352964,0.00037093,120]
[392698745,1761834006150,-500.0,0.00037093,120]
[392698746,1761834006191,-710.06,0.00037093,120]
[392698747,1761834006232,-710.06,0.00037093,120]
[392698748,1761834006272,-500.0,0.00037093,120]
[392698749,1761834006311,-289.22892938,0.00037093,120]
[392698750,1761834006350,-710.06,0.00037093,120]
[392698751,1761834006393,-500.0,0.00037093,120]
[392698752,1761834006434,-523.81521661,0.00037093,120]
[392698753,1761834006474,-710.06,0.00037093,120]
[392698754,1761834006512,-670.24,0.00037093,120]
[392698755,1761834006553,-500.0,0.00037093,120]
[392698756,1761834006591,-710.06,0.00037093,120]